{"text_format":"1","workbook":"xlsx","n_sheets":2,"sheets":["Toullab","Statics"],"not_rendered":{"charts":0,"images":0,"macros":1,"external_links":0,"defined_names":1,"comments":0,"pivot_tables":0},"unopened":[],"bounds":{"document_bytes":16777216,"sheet_cells":100000,"rows_first":2000,"rows_last":500,"rows_between":2000,"halvings":0,"cell_chars":16384,"cell_head_chars":4096},"cells_cut":0,"cells_raw":0,"read":"whole","date_system":"1900"}

{"sheet":"Toullab","index":0,"n_rows":136,"n_cols":7,"rows_kept":136,"cut":false,"hidden":false,"merged":[]}
["ت","اسم الطالب الرباعي","الملاحظات","النوع","الجنسية","القسم","الصف"]
[{"$f":"IF(B2=\"\",\"\",MAX($A$1:A1)+1)","v":1},"ابا ذر صالح حسن علكم","معيد مطالب جميع المواد","أنثى","عراقية","الارشاد الزراعي ونقل التقنيات","الاول"]
[{"$f":"IF(B3=\"\",\"\",MAX($A$1:A2)+1)","v":2},"احمد حسن عنجور شمام",null,"ذكر",null,"الاقتصاد الزراعي","الثاني"]
[{"$f":"IF(B4=\"\",\"\",MAX($A$1:A3)+1)","v":3},"احمد رافد عبد الكريم عبد العزيز",null,"ذكر",null,"الانتاج الحيواني","الاول"]
[{"$f":"IF(B5=\"\",\"\",MAX($A$1:A4)+1)","v":4},"احمد عباس محي عبادي",null,"أنثى",null,"الارشاد الزراعي ونقل التقنيات","الاول"]
[{"$f":"IF(B6=\"\",\"\",MAX($A$1:A5)+1)","v":5},"احمد محمد فليح عبيد",null,"أنثى",null,"المحاصيل الحقلية","الاول"]
[{"$f":"IF(B7=\"\",\"\",MAX($A$1:A6)+1)","v":6},"احمد مشتاق عبد الهادي سلمان",null,"ذكر",null,"المكائن والالات الزراعية","الثاني"]
[{"$f":"IF(B8=\"\",\"\",MAX($A$1:A7)+1)","v":7},"احمد نبز محمد امين فرج",null,"أنثى",null,"علوم الاغذية","الثاني"]
[{"$f":"IF(B9=\"\",\"\",MAX($A$1:A8)+1)","v":8},"اسراء عباس مسلم غلام","معيد مطالب جميع المواد","ذكر","عراقية","علوم التربة والموارد المائية","الثاني"]
[{"$f":"IF(B10=\"\",\"\",MAX($A$1:A9)+1)","v":9},"الحسن وليد عبد الرزاق حبيب",null,"أنثى",null,"مكافحة التصحر","الثاني"]
[{"$f":"IF(B11=\"\",\"\",MAX($A$1:A10)+1)","v":10},"الصادق ياسر عامر صادق",null,"ذكر",null,"وقاية النبات","الثاني"]
[{"$f":"IF(B12=\"\",\"\",MAX($A$1:A11)+1)","v":11},"امجد داود سلمان دانه",null,"ذكر",null,"الارشاد الزراعي ونقل التقنيات","الاول"]
[{"$f":"IF(B13=\"\",\"\",MAX($A$1:A12)+1)","v":12},"امجد هادي جاسم محمد",null,"ذكر",null,"الارشاد الزراعي ونقل التقنيات","الاول"]
[{"$f":"IF(B14=\"\",\"\",MAX($A$1:A13)+1)","v":13},"امير باسم عباس غانم","معيد مطالب // رسم هندسي,احصاء وتصميم تجارب,البستنة وهندسة الحدائق , لغة انكليزية2","أنثى","عراقية","الانتاج الحيواني","الثالث"]
[{"$f":"IF(B15=\"\",\"\",MAX($A$1:A14)+1)","v":14},"ايسر زكي غزاي محمد","معيد مطالب جميع المواد","أنثى","عراقية","الارشاد الزراعي ونقل التقنيات","الاول"]
[{"$f":"IF(B16=\"\",\"\",MAX($A$1:A15)+1)","v":15},"ايه سعد سبع خميس",null,"أنثى",null,"الاقتصاد الزراعي","الاول"]
[{"$f":"IF(B17=\"\",\"\",MAX($A$1:A16)+1)","v":16},"ايوب عدنان داود فرحان",null,"أنثى",null,"الانتاج الحيواني","الاول"]
[{"$f":"IF(B18=\"\",\"\",MAX($A$1:A17)+1)","v":17},"ايوب عبد المحسن جبوري مجحم",null,"أنثى",null,"الارشاد الزراعي ونقل التقنيات","الاول"]
[{"$f":"IF(B19=\"\",\"\",MAX($A$1:A18)+1)","v":18},"باقر حسن مهنا شهاب",null,"أنثى",null,"علوم التربة والموارد المائية","الرابع"]
[{"$f":"IF(B20=\"\",\"\",MAX($A$1:A19)+1)","v":19},"بحر رافد بحر محمد",null,"ذكر",null,"مكافحة التصحر","الرابع"]
[{"$f":"IF(B21=\"\",\"\",MAX($A$1:A20)+1)","v":20},"براق ستار حبيب جاسم","معيد مطالب جميع المواد","أنثى","عراقية","وقاية النبات","الرابع"]
[{"$f":"IF(B22=\"\",\"\",MAX($A$1:A21)+1)","v":21},"حسن علي كريم حمود",null,"ذكر",null,"الارشاد الزراعي ونقل التقنيات","الرابع"]
[{"$f":"IF(B23=\"\",\"\",MAX($A$1:A22)+1)","v":22},"حسن فايق علاي حسين",null,"ذكر",null,"الاقتصاد الزراعي","الرابع"]
[{"$f":"IF(B24=\"\",\"\",MAX($A$1:A23)+1)","v":23},"حسن محمد رسم الله علوان",null,"أنثى",null,"الانتاج الحيواني","الرابع"]
[{"$f":"IF(B25=\"\",\"\",MAX($A$1:A24)+1)","v":24},"حسن هلال نهير صياح",null,"ذكر",null,"البستنة وهندسة الحدائق","الرابع"]
[{"$f":"IF(B26=\"\",\"\",MAX($A$1:A25)+1)","v":25},"حسين اكرم اسماعيل حافظ",null,"أنثى",null,"المحاصيل الحقلية","الثاني"]
[{"$f":"IF(B27=\"\",\"\",MAX($A$1:A26)+1)","v":26},"حمدي محمد جعفر حسن",null,"ذكر",null,"المكائن والالات الزراعية","الثاني"]
[{"$f":"IF(B28=\"\",\"\",MAX($A$1:A27)+1)","v":27},"حمزة عماد جميل سلمان","معيد مطالب جميع المواد","أنثى","عراقية","علوم الاغذية","الثاني"]
[{"$f":"IF(B29=\"\",\"\",MAX($A$1:A28)+1)","v":28},"حمزة فاهم عبد زيد دبيس",null,"أنثى",null,"علوم التربة والموارد المائية","الثاني"]
[{"$f":"IF(B30=\"\",\"\",MAX($A$1:A29)+1)","v":29},"حمزه جاسم دعبول عليوي",null,"ذكر",null,"مكافحة التصحر","الثاني"]
[{"$f":"IF(B31=\"\",\"\",MAX($A$1:A30)+1)","v":30},"حوراء حسين علي حيدر",null,"ذكر",null,"وقاية النبات","الثاني"]
[{"$f":"IF(B32=\"\",\"\",MAX($A$1:A31)+1)","v":31},"حيدر نذير عزيز حسين","معيد مطالب جميع المواد","ذكر",null,"الارشاد الزراعي ونقل التقنيات","الثاني"]
[{"$f":"IF(B33=\"\",\"\",MAX($A$1:A32)+1)","v":32},"حيدر حسن عبد الله جاسم",null,"أنثى",null,"الاقتصاد الزراعي","الاول"]
[{"$f":"IF(B34=\"\",\"\",MAX($A$1:A33)+1)","v":33},"حيدر علي خضير عطيه","معاد الى الدراسة بالامر 855 في 2020/2/16 مستوفي _ورش هندسية1/ حقوق انسان وحريات عامة/تطبيقات حاسوب1","أنثى","عراقية","الانتاج الحيواني","الاول"]
[{"$f":"IF(B35=\"\",\"\",MAX($A$1:A34)+1)","v":34},"حيدر محمود محمد علي معصوم",null,"ذكر",null,"البستنة وهندسة الحدائق","الاول"]
[{"$f":"IF(B36=\"\",\"\",MAX($A$1:A35)+1)","v":35},"حيدر نجم عبد علي حسين","معيد مطالب جميع المواد","أنثى","عراقية","المحاصيل الحقلية","الاول"]
[{"$f":"IF(B37=\"\",\"\",MAX($A$1:A36)+1)","v":36},"رأفت عماد احمد علي","معيد مطالب جميع المواد","أنثى","عراقية","المكائن والالات الزراعية","الاول"]
[{"$f":"IF(B38=\"\",\"\",MAX($A$1:A37)+1)","v":37},"رقيه محمد صالح عبد",null,"ذكر",null,"علوم الاغذية","الثالث"]
[{"$f":"IF(B39=\"\",\"\",MAX($A$1:A38)+1)","v":38},"زهراء احمد حسين كاظم","معيد مطالب جميع المواد","ذكر","عراقية","علوم التربة والموارد المائية","الثالث"]
[{"$f":"IF(B40=\"\",\"\",MAX($A$1:A39)+1)","v":39},"زهراء حسين محسن زرزور",null,"أنثى",null,"مكافحة التصحر","الثالث"]
[{"$f":"IF(B41=\"\",\"\",MAX($A$1:A40)+1)","v":40},"زهراء زياد طارق نعمان",null,"ذكر",null,"وقاية النبات","الثالث"]
[{"$f":"IF(B42=\"\",\"\",MAX($A$1:A41)+1)","v":41},"زينب حسن علي فرحان",null,"أنثى",null,"المحاصيل الحقلية","الثالث"]
[{"$f":"IF(B43=\"\",\"\",MAX($A$1:A42)+1)","v":42},"زينب نعمان منذر كاظم",null,"ذكر",null,"المكائن والالات الزراعية","الثالث"]
[{"$f":"IF(B44=\"\",\"\",MAX($A$1:A43)+1)","v":43},"ساره فارس عبد الامير","معاد الى الدراسة بالامر5960 في 2019/12/16//مطالب جميع المواد","أنثى","عراقية","علوم الاغذية","الثالث"]
[{"$f":"IF(B45=\"\",\"\",MAX($A$1:A44)+1)","v":44},"سجاد عبد القادر عبيد حسين","معيد مطالب //رياضيات,المساحة وتسوية وتعديل اراضي,احصاء وتصميم تجارب,البستنة وهندسة الحدائق","أنثى","عراقية","الاقتصاد الزراعي","الثالث"]
[{"$f":"IF(B46=\"\",\"\",MAX($A$1:A45)+1)","v":45},"سجاد وليد جبار عباس",null,"ذكر",null,"الانتاج الحيواني","الثالث"]
[{"$f":"IF(B47=\"\",\"\",MAX($A$1:A46)+1)","v":46},"ابا ذر صالح حسن علكم","معيد مطالب جميع المواد","ذكر","عراقية","الارشاد الزراعي ونقل التقنيات","الاول"]
[{"$f":"IF(B48=\"\",\"\",MAX($A$1:A47)+1)","v":47},"احمد حسن عنجور شمام",null,"ذكر",null,"الاقتصاد الزراعي","الثاني"]
[{"$f":"IF(B49=\"\",\"\",MAX($A$1:A48)+1)","v":48},"احمد رافد عبد الكريم عبد العزيز",null,"ذكر",null,"الانتاج الحيواني","الاول"]
[{"$f":"IF(B50=\"\",\"\",MAX($A$1:A49)+1)","v":49},"احمد عباس محي عبادي",null,"أنثى",null,"الارشاد الزراعي ونقل التقنيات","الاول"]
[{"$f":"IF(B51=\"\",\"\",MAX($A$1:A50)+1)","v":50},"احمد محمد فليح عبيد",null,"أنثى",null,"المحاصيل الحقلية","الاول"]
[{"$f":"IF(B52=\"\",\"\",MAX($A$1:A51)+1)","v":51},"احمد مشتاق عبد الهادي سلمان",null,"ذكر",null,"المكائن والالات الزراعية","الثاني"]
[{"$f":"IF(B53=\"\",\"\",MAX($A$1:A52)+1)","v":52},"احمد نبز محمد امين فرج",null,"أنثى",null,"علوم الاغذية","الثاني"]
[{"$f":"IF(B54=\"\",\"\",MAX($A$1:A53)+1)","v":53},"اسراء عباس مسلم غلام","معيد مطالب جميع المواد","ذكر","عراقية","علوم التربة والموارد المائية","الثاني"]
[{"$f":"IF(B55=\"\",\"\",MAX($A$1:A54)+1)","v":54},"الحسن وليد عبد الرزاق حبيب",null,"أنثى",null,"مكافحة التصحر","الثاني"]
[{"$f":"IF(B56=\"\",\"\",MAX($A$1:A55)+1)","v":55},"الصادق ياسر عامر صادق",null,"ذكر",null,"وقاية النبات","الثاني"]
[{"$f":"IF(B57=\"\",\"\",MAX($A$1:A56)+1)","v":56},"امجد داود سلمان دانه",null,"ذكر",null,"الارشاد الزراعي ونقل التقنيات","الاول"]
[{"$f":"IF(B58=\"\",\"\",MAX($A$1:A57)+1)","v":57},"امجد هادي جاسم محمد",null,"ذكر",null,"الارشاد الزراعي ونقل التقنيات","الاول"]
[{"$f":"IF(B59=\"\",\"\",MAX($A$1:A58)+1)","v":58},"امير باسم عباس غانم","معيد مطالب // رسم هندسي,احصاء وتصميم تجارب,البستنة وهندسة الحدائق , لغة انكليزية2","أنثى","عراقية","الانتاج الحيواني","الثالث"]
[{"$f":"IF(B60=\"\",\"\",MAX($A$1:A59)+1)","v":59},"ايسر زكي غزاي محمد","معيد مطالب جميع المواد","أنثى","عراقية","الارشاد الزراعي ونقل التقنيات","الاول"]
[{"$f":"IF(B61=\"\",\"\",MAX($A$1:A60)+1)","v":60},"ايه سعد سبع خميس",null,"أنثى",null,"الاقتصاد الزراعي","الاول"]
[{"$f":"IF(B62=\"\",\"\",MAX($A$1:A61)+1)","v":61},"ايوب عدنان داود فرحان",null,"أنثى",null,"الانتاج الحيواني","الاول"]
[{"$f":"IF(B63=\"\",\"\",MAX($A$1:A62)+1)","v":62},"ايوب عبد المحسن جبوري مجحم",null,"أنثى",null,"الارشاد الزراعي ونقل التقنيات","الاول"]
[{"$f":"IF(B64=\"\",\"\",MAX($A$1:A63)+1)","v":63},"باقر حسن مهنا شهاب",null,"أنثى",null,"علوم التربة والموارد المائية","الرابع"]
[{"$f":"IF(B65=\"\",\"\",MAX($A$1:A64)+1)","v":64},"بحر رافد بحر محمد",null,"ذكر",null,"مكافحة التصحر","الرابع"]
[{"$f":"IF(B66=\"\",\"\",MAX($A$1:A65)+1)","v":65},"براق ستار حبيب جاسم","معيد مطالب جميع المواد","أنثى","عراقية","وقاية النبات","الرابع"]
[{"$f":"IF(B67=\"\",\"\",MAX($A$1:A66)+1)","v":66},"حسن علي كريم حمود",null,"ذكر",null,"الارشاد الزراعي ونقل التقنيات","الرابع"]
[{"$f":"IF(B68=\"\",\"\",MAX($A$1:A67)+1)","v":67},"حسن فايق علاي حسين",null,"ذكر",null,"الاقتصاد الزراعي","الرابع"]
[{"$f":"IF(B69=\"\",\"\",MAX($A$1:A68)+1)","v":68},"حسن محمد رسم الله علوان",null,"أنثى",null,"الانتاج الحيواني","الرابع"]
[{"$f":"IF(B70=\"\",\"\",MAX($A$1:A69)+1)","v":69},"حسن هلال نهير صياح",null,"ذكر",null,"البستنة وهندسة الحدائق","الرابع"]
[{"$f":"IF(B71=\"\",\"\",MAX($A$1:A70)+1)","v":70},"حسين اكرم اسماعيل حافظ",null,"أنثى",null,"المحاصيل الحقلية","الثاني"]
[{"$f":"IF(B72=\"\",\"\",MAX($A$1:A71)+1)","v":71},"حمدي محمد جعفر حسن",null,"ذكر",null,"المكائن والالات الزراعية","الثاني"]
[{"$f":"IF(B73=\"\",\"\",MAX($A$1:A72)+1)","v":72},"حمزة عماد جميل سلمان","معيد مطالب جميع المواد","أنثى","عراقية","علوم الاغذية","الثاني"]
[{"$f":"IF(B74=\"\",\"\",MAX($A$1:A73)+1)","v":73},"حمزة فاهم عبد زيد دبيس",null,"أنثى",null,"علوم التربة والموارد المائية","الثاني"]
[{"$f":"IF(B75=\"\",\"\",MAX($A$1:A74)+1)","v":74},"حمزه جاسم دعبول عليوي",null,"ذكر",null,"مكافحة التصحر","الثاني"]
[{"$f":"IF(B76=\"\",\"\",MAX($A$1:A75)+1)","v":75},"حوراء حسين علي حيدر",null,"ذكر",null,"وقاية النبات","الثاني"]
[{"$f":"IF(B77=\"\",\"\",MAX($A$1:A76)+1)","v":76},"حيدر نذير عزيز حسين","معيد مطالب جميع المواد","ذكر",null,"الارشاد الزراعي ونقل التقنيات","الثاني"]
[{"$f":"IF(B78=\"\",\"\",MAX($A$1:A77)+1)","v":77},"حيدر حسن عبد الله جاسم",null,"أنثى",null,"الاقتصاد الزراعي","الاول"]
[{"$f":"IF(B79=\"\",\"\",MAX($A$1:A78)+1)","v":78},"حيدر علي خضير عطيه","معاد الى الدراسة بالامر 855 في 2020/2/16 مستوفي _ورش هندسية1/ حقوق انسان وحريات عامة/تطبيقات حاسوب1","أنثى","عراقية","الانتاج الحيواني","الاول"]
[{"$f":"IF(B80=\"\",\"\",MAX($A$1:A79)+1)","v":79},"حيدر محمود محمد علي معصوم",null,"ذكر",null,"البستنة وهندسة الحدائق","الاول"]
[{"$f":"IF(B81=\"\",\"\",MAX($A$1:A80)+1)","v":80},"حيدر نجم عبد علي حسين","معيد مطالب جميع المواد","أنثى","عراقية","المحاصيل الحقلية","الاول"]
[{"$f":"IF(B82=\"\",\"\",MAX($A$1:A81)+1)","v":81},"رأفت عماد احمد علي","معيد مطالب جميع المواد","أنثى","عراقية","المكائن والالات الزراعية","الاول"]
[{"$f":"IF(B83=\"\",\"\",MAX($A$1:A82)+1)","v":82},"رقيه محمد صالح عبد",null,"ذكر",null,"علوم الاغذية","الثالث"]
[{"$f":"IF(B84=\"\",\"\",MAX($A$1:A83)+1)","v":83},"زهراء احمد حسين كاظم","معيد مطالب جميع المواد","ذكر","عراقية","علوم التربة والموارد المائية","الثالث"]
[{"$f":"IF(B85=\"\",\"\",MAX($A$1:A84)+1)","v":84},"زهراء حسين محسن زرزور",null,"أنثى",null,"مكافحة التصحر","الثالث"]
[{"$f":"IF(B86=\"\",\"\",MAX($A$1:A85)+1)","v":85},"زهراء زياد طارق نعمان",null,"ذكر",null,"وقاية النبات","الثالث"]
[{"$f":"IF(B87=\"\",\"\",MAX($A$1:A86)+1)","v":86},"زينب حسن علي فرحان",null,"أنثى",null,"المحاصيل الحقلية","الثالث"]
[{"$f":"IF(B88=\"\",\"\",MAX($A$1:A87)+1)","v":87},"زينب نعمان منذر كاظم",null,"ذكر",null,"المكائن والالات الزراعية","الثالث"]
[{"$f":"IF(B89=\"\",\"\",MAX($A$1:A88)+1)","v":88},"ساره فارس عبد الامير","معاد الى الدراسة بالامر5960 في 2019/12/16//مطالب جميع المواد","أنثى","عراقية","علوم الاغذية","الثالث"]
[{"$f":"IF(B90=\"\",\"\",MAX($A$1:A89)+1)","v":89},"سجاد عبد القادر عبيد حسين","معيد مطالب //رياضيات,المساحة وتسوية وتعديل اراضي,احصاء وتصميم تجارب,البستنة وهندسة الحدائق","أنثى","عراقية","الاقتصاد الزراعي","الثالث"]
[{"$f":"IF(B91=\"\",\"\",MAX($A$1:A90)+1)","v":90},"سجاد وليد جبار عباس",null,"ذكر",null,"الانتاج الحيواني","الثالث"]
[{"$f":"IF(B92=\"\",\"\",MAX($A$1:A91)+1)","v":91},"ابا ذر صالح حسن علكم","معيد مطالب جميع المواد","ذكر","عراقية","الارشاد الزراعي ونقل التقنيات","الاول"]
[{"$f":"IF(B93=\"\",\"\",MAX($A$1:A92)+1)","v":92},"احمد حسن عنجور شمام",null,"ذكر",null,"الاقتصاد الزراعي","الثاني"]
[{"$f":"IF(B94=\"\",\"\",MAX($A$1:A93)+1)","v":93},"احمد رافد عبد الكريم عبد العزيز",null,"ذكر",null,"الانتاج الحيواني","الاول"]
[{"$f":"IF(B95=\"\",\"\",MAX($A$1:A94)+1)","v":94},"احمد عباس محي عبادي",null,"أنثى",null,"الارشاد الزراعي ونقل التقنيات","الاول"]
[{"$f":"IF(B96=\"\",\"\",MAX($A$1:A95)+1)","v":95},"احمد محمد فليح عبيد",null,"أنثى",null,"المحاصيل الحقلية","الاول"]
[{"$f":"IF(B97=\"\",\"\",MAX($A$1:A96)+1)","v":96},"احمد مشتاق عبد الهادي سلمان",null,"ذكر",null,"المكائن والالات الزراعية","الثاني"]
[{"$f":"IF(B98=\"\",\"\",MAX($A$1:A97)+1)","v":97},"احمد نبز محمد امين فرج",null,"أنثى",null,"علوم الاغذية","الثاني"]
[{"$f":"IF(B99=\"\",\"\",MAX($A$1:A98)+1)","v":98},"اسراء عباس مسلم غلام","معيد مطالب جميع المواد","ذكر","عراقية","علوم التربة والموارد المائية","الثاني"]
[{"$f":"IF(B100=\"\",\"\",MAX($A$1:A99)+1)","v":99},"الحسن وليد عبد الرزاق حبيب",null,"أنثى",null,"مكافحة التصحر","الثاني"]
[{"$f":"IF(B101=\"\",\"\",MAX($A$1:A100)+1)","v":100},"الصادق ياسر عامر صادق",null,"ذكر",null,"وقاية النبات","الثاني"]
[{"$f":"IF(B102=\"\",\"\",MAX($A$1:A101)+1)","v":101},"امجد داود سلمان دانه",null,"ذكر",null,"الارشاد الزراعي ونقل التقنيات","الاول"]
[{"$f":"IF(B103=\"\",\"\",MAX($A$1:A102)+1)","v":102},"امجد هادي جاسم محمد",null,"ذكر",null,"الارشاد الزراعي ونقل التقنيات","الاول"]
[{"$f":"IF(B104=\"\",\"\",MAX($A$1:A103)+1)","v":103},"امير باسم عباس غانم","معيد مطالب // رسم هندسي,احصاء وتصميم تجارب,البستنة وهندسة الحدائق , لغة انكليزية2","أنثى","عراقية","الانتاج الحيواني","الثالث"]
[{"$f":"IF(B105=\"\",\"\",MAX($A$1:A104)+1)","v":104},"ايسر زكي غزاي محمد","معيد مطالب جميع المواد","أنثى","عراقية","الارشاد الزراعي ونقل التقنيات","الاول"]
[{"$f":"IF(B106=\"\",\"\",MAX($A$1:A105)+1)","v":105},"ايه سعد سبع خميس",null,"أنثى",null,"الاقتصاد الزراعي","الاول"]
[{"$f":"IF(B107=\"\",\"\",MAX($A$1:A106)+1)","v":106},"ايوب عدنان داود فرحان",null,"أنثى",null,"الانتاج الحيواني","الاول"]
[{"$f":"IF(B108=\"\",\"\",MAX($A$1:A107)+1)","v":107},"ايوب عبد المحسن جبوري مجحم",null,"أنثى",null,"الارشاد الزراعي ونقل التقنيات","الاول"]
[{"$f":"IF(B109=\"\",\"\",MAX($A$1:A108)+1)","v":108},"باقر حسن مهنا شهاب",null,"أنثى",null,"علوم التربة والموارد المائية","الرابع"]
[{"$f":"IF(B110=\"\",\"\",MAX($A$1:A109)+1)","v":109},"بحر رافد بحر محمد",null,"ذكر",null,"مكافحة التصحر","الرابع"]
[{"$f":"IF(B111=\"\",\"\",MAX($A$1:A110)+1)","v":110},"براق ستار حبيب جاسم","معيد مطالب جميع المواد","أنثى","عراقية","وقاية النبات","الرابع"]
[{"$f":"IF(B112=\"\",\"\",MAX($A$1:A111)+1)","v":111},"حسن علي كريم حمود",null,"ذكر",null,"الارشاد الزراعي ونقل التقنيات","الرابع"]
[{"$f":"IF(B113=\"\",\"\",MAX($A$1:A112)+1)","v":112},"حسن فايق علاي حسين",null,"ذكر",null,"الاقتصاد الزراعي","الرابع"]
[{"$f":"IF(B114=\"\",\"\",MAX($A$1:A113)+1)","v":113},"حسن محمد رسم الله علوان",null,"أنثى",null,"الانتاج الحيواني","الرابع"]
[{"$f":"IF(B115=\"\",\"\",MAX($A$1:A114)+1)","v":114},"حسن هلال نهير صياح",null,"ذكر",null,"البستنة وهندسة الحدائق","الرابع"]
[{"$f":"IF(B116=\"\",\"\",MAX($A$1:A115)+1)","v":115},"حسين اكرم اسماعيل حافظ",null,"أنثى",null,"المحاصيل الحقلية","الثاني"]
[{"$f":"IF(B117=\"\",\"\",MAX($A$1:A116)+1)","v":116},"حمدي محمد جعفر حسن",null,"ذكر",null,"المكائن والالات الزراعية","الثاني"]
[{"$f":"IF(B118=\"\",\"\",MAX($A$1:A117)+1)","v":117},"حمزة عماد جميل سلمان","معيد مطالب جميع المواد","أنثى","عراقية","علوم الاغذية","الثاني"]
[{"$f":"IF(B119=\"\",\"\",MAX($A$1:A118)+1)","v":118},"حمزة فاهم عبد زيد دبيس",null,"أنثى",null,"علوم التربة والموارد المائية","الثاني"]
[{"$f":"IF(B120=\"\",\"\",MAX($A$1:A119)+1)","v":119},"حمزه جاسم دعبول عليوي",null,"ذكر",null,"مكافحة التصحر","الثاني"]
[{"$f":"IF(B121=\"\",\"\",MAX($A$1:A120)+1)","v":120},"حوراء حسين علي حيدر",null,"ذكر",null,"وقاية النبات","الثاني"]
[{"$f":"IF(B122=\"\",\"\",MAX($A$1:A121)+1)","v":121},"حيدر نذير عزيز حسين","معيد مطالب جميع المواد","ذكر",null,"الارشاد الزراعي ونقل التقنيات","الثاني"]
[{"$f":"IF(B123=\"\",\"\",MAX($A$1:A122)+1)","v":122},"حيدر حسن عبد الله جاسم",null,"أنثى",null,"الاقتصاد الزراعي","الاول"]
[{"$f":"IF(B124=\"\",\"\",MAX($A$1:A123)+1)","v":123},"حيدر علي خضير عطيه","معاد الى الدراسة بالامر 855 في 2020/2/16 مستوفي _ورش هندسية1/ حقوق انسان وحريات عامة/تطبيقات حاسوب1","أنثى","عراقية","الانتاج الحيواني","الاول"]
[{"$f":"IF(B125=\"\",\"\",MAX($A$1:A124)+1)","v":124},"حيدر محمود محمد علي معصوم",null,"ذكر",null,"البستنة وهندسة الحدائق","الاول"]
[{"$f":"IF(B126=\"\",\"\",MAX($A$1:A125)+1)","v":125},"حيدر نجم عبد علي حسين","معيد مطالب جميع المواد","أنثى","عراقية","المحاصيل الحقلية","الاول"]
[{"$f":"IF(B127=\"\",\"\",MAX($A$1:A126)+1)","v":126},"رأفت عماد احمد علي","معيد مطالب جميع المواد","أنثى","عراقية","المكائن والالات الزراعية","الاول"]
[{"$f":"IF(B128=\"\",\"\",MAX($A$1:A127)+1)","v":127},"رقيه محمد صالح عبد",null,"ذكر",null,"علوم الاغذية","الثالث"]
[{"$f":"IF(B129=\"\",\"\",MAX($A$1:A128)+1)","v":128},"زهراء احمد حسين كاظم","معيد مطالب جميع المواد","ذكر","عراقية","علوم التربة والموارد المائية","الثالث"]
[{"$f":"IF(B130=\"\",\"\",MAX($A$1:A129)+1)","v":129},"زهراء حسين محسن زرزور",null,"أنثى",null,"مكافحة التصحر","الثالث"]
[{"$f":"IF(B131=\"\",\"\",MAX($A$1:A130)+1)","v":130},"زهراء زياد طارق نعمان",null,"ذكر",null,"وقاية النبات","الثالث"]
[{"$f":"IF(B132=\"\",\"\",MAX($A$1:A131)+1)","v":131},"زينب حسن علي فرحان",null,"أنثى",null,"المحاصيل الحقلية","الثالث"]
[{"$f":"IF(B133=\"\",\"\",MAX($A$1:A132)+1)","v":132},"زينب نعمان منذر كاظم",null,"ذكر",null,"المكائن والالات الزراعية","الثالث"]
[{"$f":"IF(B134=\"\",\"\",MAX($A$1:A133)+1)","v":133},"ساره فارس عبد الامير","معاد الى الدراسة بالامر5960 في 2019/12/16//مطالب جميع المواد","أنثى","عراقية","علوم الاغذية","الثالث"]
[{"$f":"IF(B135=\"\",\"\",MAX($A$1:A134)+1)","v":134},"سجاد عبد القادر عبيد حسين","معيد مطالب //رياضيات,المساحة وتسوية وتعديل اراضي,احصاء وتصميم تجارب,البستنة وهندسة الحدائق","أنثى","عراقية","الاقتصاد الزراعي","الثالث"]
[{"$f":"IF(B136=\"\",\"\",MAX($A$1:A135)+1)","v":135},"سجاد وليد جبار عباس",null,"ذكر",null,"الانتاج الحيواني","الثالث"]

{"sheet":"Statics","index":1,"n_rows":14,"n_cols":16,"rows_kept":14,"cut":false,"hidden":false,"merged":[[0,2,0,3],[0,5,0,6],[0,8,0,9],[0,11,0,12],[0,0,1,0],[0,14,0,15],[0,7,1,7],[0,4,1,4],[0,10,1,10],[0,13,1,13]]}
["القسم العلمي",null,"الصف الاول",null,"المجموع","الصف الثاني",null,"المجموع","الصف الثالث",null,"المجموع","الصف الرابع",null,"المجموع","المجموع"]
[null,null,"ذكر","انثى",null,"ذكر","انثى",null,"ذكر","انثى",null,"ذكر","انثى",null,"ذكر","انثى"]
[]
["الارشاد الزراعي ونقل التقنيات",null,8,10,{"$f":"SUM(C4:D4)","v":18},3,0,{"$f":"SUM(F4:G4)","v":3},0,0,{"$f":"SUM(I4:J4)","v":0},3,0,{"$f":"SUM(L4:M4)","v":3},{"$f":"SUM(C4,F4,I4,L4)","v":14},{"$f":"SUM(D4,G4,J4,M4)","v":10}]
["الاقتصاد الزراعي",null,0,6,{"$f":"SUM(C5:D5)","v":6},3,0,{"$f":"SUM(F5:G5)","v":3},0,3,{"$f":"SUM(I5:J5)","v":3},3,0,{"$f":"SUM(L5:M5)","v":3},{"$f":"SUM(C5,F5,I5,L5)","v":6},{"$f":"SUM(D5,G5,J5,M5)","v":9}]
["الانتاج الحيواني",null,3,6,9,0,0,0,2,3,5,0,3,3,5,12]
["البستنة وهندسة الحدائق",null,3,0,3,0,0,0,0,0,0,3,0,3,6,0]
["المحاصيل الحقلية",null,0,6,6,0,3,3,0,3,3,0,0,0,0,12]
["المكائن والالات الزراعية",null,0,3,3,6,0,6,3,0,3,0,0,0,9,3]
["علوم الاغذية",null,0,0,0,0,6,6,3,3,6,0,0,0,3,9]
["علوم التربة والموارد المائية",null,0,0,0,3,3,6,3,0,3,0,3,3,6,6]
["مكافحة التصحر",null,0,0,0,3,3,6,0,3,3,3,0,3,6,6]
["وقاية النبات",null,0,0,0,6,0,6,3,0,3,0,3,3,9,3]
["المجموع",null,{"$f":"SUM(C4:C13)","v":14},{"$f":"SUM(D4:D13)","v":31},45,24,15,39,14,15,29,12,9,21,64,70]